[Event "Belt Road Women 2019"]
[Site "Shaoxing"]
[Date "2019.07.08"]
[Round "1.1"]
[White "Kosteniuk, Alexandra"]
[Black "Li, Xueyi"]
[Result "1/2-1/2"]
[ECO "B11"]
[WhiteElo "2517"]
[BlackElo "2330"]
[Annotator "ChessBase"]
[PlyCount "77"]
[EventDate "2019.07.08"]
[EventType "swiss"]
[EventCountry "CHN"]
[SourceTitle "playchess.com"]
[Source "ChessBase"]
[SourceQuality "1"]
[TimeControl "5400+30"]

1. e4 {[%emt 0:00:00]} c6 {[%emt 0:00:00]} 2. Nf3 {[%emt 0:00:00]} d5 {[%emt 0:00:00]} 3. Nc3 {[%emt 0:00:00]} Nf6 {[%emt 0:00:01]} 4. e5 {[%emt 0:00:06]} Ne4 {[%emt 0:00:10]} 5. d4 {[%emt 0:00:11]} Nxc3 {[%emt 0:00:12]} 6. bxc3 {[%emt 0:00:07]} c5 {[%emt 0:00:07]} 7. c4 {[%emt 0:03:08]} Nc6 {[%emt 0:03:20]} 8. cxd5 {[%emt 0:00:23]} Qxd5 {[%emt 0:00:58]} 9. c3 {[%emt 0:16:21]} cxd4 {[%emt 0:01:11]} 10. cxd4 {[%emt 0:02:13]} Bg4 {[%emt 0:05:56]} 11. Be2 {[%emt 0:00:32]} Rd8 {[%emt 0:02:26]} 12. O-O {[%emt 0:01:07]} e6 {[%emt 0:02:07]} 13. Bg5 {[%emt 0:08:20]} Be7 {[%emt 0:02:55]} 14. Bxe7 {[%emt 0:00:18]} Nxe7 {[%emt 0:00:13]} 15. Qa4+ {[%emt 0:01:07]} Nc6 {[%emt 0:00:44]} 16. Rfb1 {[%emt 0:12:48]} O-O {[%emt 0:02:49]} 17. Rxb7 {[%emt 0:15:44]} Qe4 {[%emt 0:05:57]} 18. Rb2 {[%emt 0:04:09]} Nxd4 {[%emt 0:24:40]} 19. Nxd4 {[%emt 0:00:24]} Qxd4 {[%emt 0:01:23]} 20. Qxd4 {[%emt 0:02:21]} Rxd4 {[%emt 0:00:08]} 21. f3 {[%emt 0:01:05]} Bf5 {[%emt 0:00:20]} 22. Rc1 {[%emt 0:00:13]} g5 {[%emt 0:04:09]} 23. g4 {[%emt 0:14:00]} Bg6 {[%emt 0:00:22]} 24. Rc7 {[%emt 0:00:06]} a5 {[%emt 0:01:30]} 25. Kf2 {[%emt 0:03:33]} Rfd8 {[%emt 0:05:43]} 26. Rcb7 {[%emt 0:00:07]} Bd3 {[%emt 0:02:58]} 27. Ra7 {[%emt 0:07:55]} Bxe2 {[%emt 0:00:38]} 28. Rxe2 {[%emt 0:00:42]} R8d5 {[%emt 0:00:28]} 29. Kg3 {[%emt 0:00:42]} Rc4 {[%emt 0:03:56]} 30. h4 {[%emt 0:01:55]} gxh4+ {[%emt 0:02:07]} 31. Kxh4 {[%emt 0:00:18]} Rc3 {[%emt 0:00:13]} 32. f4 {[%emt 0:02:51]} Rf3 {[%emt 0:11:46]} 33. Kg5 {[%emt 0:02:00]} Kg7 {[%emt 0:00:13]} 34. f5 {[%emt 0:00:14]} h6+ {[%emt 0:00:17]} 35. Kh4 {[%emt 0:00:03]} Rdd3 {[%emt 0:00:51]} 36. Rh2 {[%emt 0:00:13]} exf5 {[%emt 0:03:33]} 37. e6 {[%emt 0:00:05]} fxg4 {[%emt 0:00:17]} 38. exf7 {[%emt 0:02:28]} Rxf7 {[%emt 0:00:28]} 39. Rxa5 {[%emt 0:00:36]} 1/2-1/2

[Event "Belt Road Women 2019"]
[Site "Shaoxing"]
[Date "2019.07.08"]
[Round "1.2"]
[White "Song, Yuxin"]
[Black "Dzagnidze, Nana"]
[Result "1/2-1/2"]
[ECO "C09"]
[WhiteElo "2277"]
[BlackElo "2511"]
[Annotator "ChessBase"]
[PlyCount "117"]
[EventDate "2019.07.08"]
[EventType "swiss"]
[EventCountry "CHN"]
[SourceTitle "playchess.com"]
[Source "ChessBase"]
[SourceQuality "1"]
[TimeControl "5400+30"]

1. e4 {[%emt 0:00:00]} e6 {[%emt 0:00:00]} 2. d4 {[%emt 0:00:00]} d5 {[%emt 0:00:00]} 3. Nd2 {[%emt 0:00:00]} c5 {[%emt 0:02:49]} 4. exd5 {[%emt 0:00:08]} exd5 {[%emt 0:00:06]} 5. Bb5+ {[%emt 0:00:36]} Nc6 {[%emt 0:00:06]} 6. Ngf3 {[%emt 0:04:47]} Qe7+ {[%emt 0:01:26]} 7. Qe2 {[%emt 0:02:04]} Qxe2+ {[%emt 0:02:47]} 8. Kxe2 {[%emt 0:12:30]} a6 {[%emt 0:05:54]} 9. Bxc6+ {[%emt 0:14:08]} bxc6 {[%emt 0:00:04]} 10. dxc5 {[%emt 0:00:23]} Bxc5 {[%emt 0:06:29]} 11. Nb3 {[%emt 0:03:55]} Bd6 {[%emt 0:00:07]} 12. Be3 {[%emt 0:01:18]} a5 {[%emt 0:16:13]} 13. a4 {[%emt 0:12:02]} Nf6 {[%emt 0:06:16]} 14. Nc5 {[%emt 0:03:21]} O-O {[%emt 0:15:29]} 15. Bd4 {[%emt 0:14:59]} Re8+ {[%emt 0:13:55]} 16. Kf1 {[%emt 0:03:56]} Bxc5 {[%emt 0:08:22]} 17. Bxc5 {[%emt 0:00:08]} Ba6+ {[%emt 0:00:16]} 18. Kg1 {[%emt 0:00:10]} Re2 {[%emt 0:00:06]} 19. Nd4 {[%emt 0:02:59]} Rd2 {[%emt 0:00:04]} 20. Rc1 {[%emt 0:00:11]} Nd7 {[%emt 0:12:56]} 21. Nb3 {[%emt 0:01:20]} Re2 {[%emt 0:00:06]} 22. Be3 {[%emt 0:00:36]} c5 {[%emt 0:00:10]} 23. Bxc5 {[%emt 0:15:19]} Rc8 {[%emt 0:00:40]} 24. Bd4 {[%emt 0:00:21]} Rcxc2 {[%emt 0:00:29]} 25. h3 {[%emt 0:00:02]} Rxc1+ 26. Nxc1 {[%emt 0:00:01]} Re4 {[%emt 0:01:29]} 27. Bc3 {[%emt 0:00:04]} Rxa4 {[%emt 0:00:31]} 28. Nb3 {[%emt 0:00:30]} Bc4 {[%emt 0:01:04]} 29. Nxa5 {[%emt 0:02:08]} d4 {[%emt 0:00:05]} 30. Bd2 {[%emt 0:03:58]} Be6 {[%emt 0:01:16]} 31. Kh2 {[%emt 0:00:44]} Ra2 {[%emt 0:00:45]} 32. Rb1 {[%emt 0:00:37]} Ne5 {[%emt 0:01:42]} 33. f4 {[%emt 0:00:41]} Nc4 {[%emt 0:01:14]} 34. Nxc4 {[%emt 0:00:03]} Bxc4 {[%emt 0:00:04]} 35. Bb4 {[%emt 0:01:09]} Ra8 {[%emt 0:00:40]} 36. Rd1 {[%emt 0:00:11]} d3 {[%emt 0:00:16]} 37. Bc3 {[%emt 0:00:24]} f6 {[%emt 0:00:12]} 38. Kg3 {[%emt 0:00:17]} Kf7 {[%emt 0:00:07]} 39. Kf2 {[%emt 0:01:03]} Rd8 {[%emt 0:00:12]} 40. Ke3 {[%emt 0:00:59]} Ke6 {[%emt 0:00:07]} 41. Ra1 {[%emt 0:01:15]} h5 {[%emt 0:00:48]} 42. g3 {[%emt 0:00:38]} Kd5 {[%emt 0:03:12]} 43. Kd2 {[%emt 0:00:34]} Re8 {[%emt 0:01:34]} 44. Re1 {[%emt 0:00:11]} Rxe1 {[%emt 0:00:09]} 45. Kxe1 {[%emt 0:00:00]} Ke4 {[%emt 0:00:08]} 46. Kf2 {[%emt 0:00:04]} h4 {[%emt 0:00:12]} 47. Bd2 {[%emt 0:00:14]} Be6 {[%emt 0:01:37]} 48. gxh4 {[%emt 0:00:01]} Bxh3 {[%emt 0:00:07]} 49. Kg3 {[%emt 0:00:02]} Be6 {[%emt 0:00:13]} 50. Kf2 {[%emt 0:01:02]} Bb3 {[%emt 0:00:08]} 51. Kg3 {[%emt 0:00:09]} Kd4 {[%emt 0:00:20]} 52. Kf2 {[%emt 0:00:08]} Ke4 {[%emt 0:01:17]} 53. Kg3 {[%emt 0:00:04]} g6 {[%emt 0:00:21]} 54. Kf2 {[%emt 0:00:07]} f5 {[%emt 0:00:06]} 55. Kg3 {[%emt 0:00:04]} Kd4 {[%emt 0:00:35]} 56. Kf2 {[%emt 0:00:05]} Ke4 {[%emt 0:00:31]} 57. Kg3 {[%emt 0:00:03]} Kd4 {[%emt 0:00:14]} 58. Kf2 {[%emt 0:00:03]} Ke4 {[%emt 0:00:07]} 59. Kg3 {[%emt 0:00:04] Ke5} 1/2-1/2

[Event "Belt Road Women 2019"]
[Site "Shaoxing"]
[Date "2019.07.08"]
[Round "1.3"]
[White "Tan, Zhongyi"]
[Black "Pujari, Rucha"]
[Result "0-1"]
[ECO "C58"]
[WhiteElo "2511"]
[BlackElo "2268"]
[Annotator "RC"]
[PlyCount "124"]
[EventDate "2019.07.08"]
[EventType "swiss"]
[EventCountry "CHN"]
[SourceTitle "playchess.com"]
[Source "ChessBase"]
[SourceQuality "1"]
[TimeControl "5400+30"]

1. e4 {[%emt 0:00:00]} e5 {[%emt 0:01:23]} 2. Nf3 {[%emt 0:00:11]} Nc6 {[%emt 0:00:25]} 3. Bc4 {[%emt 0:00:08]} Nf6 {[%emt 0:00:08]} 4. Ng5 {[%emt 0:00:09]} d5 {[%emt 0:00:22]} 5. exd5 {[%emt 0:00:05]} Na5 {[%emt 0:00:09]} 6. Bb5+ {[%emt 0:00:05]} c6 {[%emt 0:00:16]} 7. dxc6 {[%emt 0:00:06]} bxc6 {[%emt 0:00:05]} 8. Bd3 {[%emt 0:00:05]} h6 {[%emt 0:08:24]} 9. Ne4 {[%emt 0:00:21]} Nd5 {[%emt 0:00:43]} 10. Ng3 {[%emt 0:04:32]} h5 {[%emt 0:09:45]} 11. Qe2 {[%emt 0:29:42]} Qc7 {[%emt 0:08:01]} 12. Nxh5 {[%emt 0:03:25]} g6 {[%emt 0:01:13]} 13. c4 {[%emt 0:09:37]} Rxh5 {[%emt 0:02:03]} 14. cxd5 {[%emt 0:00:04]} cxd5 {[%emt 0:01:02]} 15. Nc3 {[%emt 0:00:46]} Be6 {[%emt 0:11:24]} 16. Bb5+ {[%emt 0:05:16]} Kd8 {[%emt 0:05:11]} 17. O-O {[%emt 0:04:12]} e4 {[%emt 0:04:40]} 18. g3 {[%emt 0:00:21]} a6 {[%emt 0:25:30]} 19. Ba4 {[%emt 0:01:14]} Nc4 {[%emt 0:03:28]} 20. d3 {[%emt 0:00:06]} exd3 {[%emt 0:00:57]} 21. Qxd3 {[%emt 0:00:04]} Ne5 {[%emt 0:01:11]} 22. Qd1 {[%emt 0:02:33]} Bd6 {[%emt 0:05:35]} 23. Bb3 {[%emt 0:05:44]} Bg4 {[%emt 0:03:25]} 24. f3 {[%emt 0:01:15]} Qc5+ {[%emt 0:03:51]} 25. Kh1 {[%emt 0:03:59]} Nxf3 {[%emt 0:00:06]} 26. Rxf3 {[%emt 0:00:04]} Bxg3 {[%emt 0:01:42]} 27. Be3 {[%emt 0:01:40]} Rxh2+ {[%emt 0:01:03]} 28. Kg1 {[%emt 0:00:04]} d4 {[%emt 0:01:09]} 29. Bd5 {[%emt 0:14:31]} dxe3 {[%emt 0:00:23]} 30. Bxa8+ {[%emt 0:00:14]} Bd6 {[%emt 0:00:52]} 31. b4 {[%emt 0:09:24]} Qe5 {[%emt 0:00:11]} 32. Kf1 {[%emt 0:02:53]} Bxf3 {[%emt 0:00:43]} 33. Qxf3 {[%emt 0:00:24]} Rf2+ {[%emt 0:00:22]} 34. Qxf2 {[%emt 0:00:04]} exf2 {[%emt 0:00:04]} 35. Rc1 {[%emt 0:00:23]} Bxb4 {[%emt 0:00:56]} 36. Ne4 {[%emt 0:01:04]} Be1 {[%emt 0:00:42]} 37. Rd1+ {[%emt 0:00:15]} Kc7 {[%emt 0:00:12]} 38. Nxf2 {[%emt 0:01:00]} Bxf2 {[%emt 0:00:03]} 39. Kxf2 {[%emt 0:00:06]} Qc5+ {[%emt 0:01:08]} 40. Ke1 {[%emt 0:00:58]} Qe3+ {[%emt 0:00:07]} 41. Kf1 {[%emt 0:00:07]} f5 {[%emt 0:00:24]} 42. Re1 {[%emt 0:00:36]} Qd3+ {[%emt 0:00:24]} 43. Kf2 {[%emt 0:00:17]} g5 {[%emt 0:00:14]} 44. Re7+ {[%emt 0:02:21]} Kd6 {[%emt 0:00:14]} 45. Re2 {[%emt 0:00:57]} g4 {[%emt 0:00:19]} 46. Ke1 {[%emt 0:00:06]} Qb1+ {[%emt 0:00:21]} 47. Kf2 {[%emt 0:00:04]} f4 {[%emt 0:00:28]} 48. Be4 {[%emt 0:00:15]} Qb4 {[%emt 0:00:45]} 49. Kg2 {[%emt 0:00:36]} Qc3 {[%emt 0:00:31]} 50. Rf2 {[%emt 0:00:23]} Qe3 {[%emt 0:00:57]} 51. Ba8 {[%emt 0:00:09]} a5 {[%emt 0:00:43]} 52. a4 {[%emt 0:00:31]} Qd4 {[%emt 0:00:48]} 53. Ra2 {[%emt 0:00:40]} Qc4 {[%emt 0:00:44]} 54. Rd2+ {[%emt 0:00:05]} Ke5 {[%emt 0:00:23]} 55. Rd8 {[%emt 0:01:29]} Qxa4 {[%emt 0:00:29]} 56. Rd5+ {[%emt 0:00:03]} Kf6 {[%emt 0:00:18]} 57. Rd6+ {[%emt 0:00:09]} Ke7 {[%emt 0:00:07]} 58. Rh6 {[%emt 0:01:50]} Qc2+ {[%emt 0:00:14]} 59. Kg1 {[%emt 0:00:05]} f3 {[%emt 0:01:03]} 60. Rh2 {[%emt 0:00:13]} Qd1+ {[%emt 0:00:15]} 61. Kf2 {[%emt 0:00:04]} Qd2+ {[%emt 0:00:29]} 62. Kg3 {[%emt 0:00:03]} Qd6+ {[%emt 0:00:08]} 0-1

[Event "Belt Road Women 2019"]
[Site "Shaoxing"]
[Date "2019.07.08"]
[Round "1.4"]
[White "Pratyusha, Bodda"]
[Black "Lei, Tingjie"]
[Result "1-0"]
[ECO "E21"]
[WhiteElo "2265"]
[BlackElo "2505"]
[Annotator "ChessBase"]
[PlyCount "70"]
[EventDate "2019.07.08"]
[EventType "swiss"]
[EventCountry "CHN"]
[SourceTitle "playchess.com"]
[Source "ChessBase"]
[SourceQuality "1"]
[TimeControl "5400+30"]

1. d4 {[%emt 0:00:00]} Nf6 {[%emt 0:00:00]} 2. c4 {[%emt 0:00:04]} e6 {[%emt 0:00:00]} 3. Nc3 {[%emt 0:00:12]} Bb4 {[%emt 0:00:01]} 4. e3 {[%emt 0:00:34]} O-O {[%emt 0:00:47]} 5. Bd2 {[%emt 0:00:30]} b6 {[%emt 0:03:39]} 6. Nf3 {[%emt 0:00:50]} Bb7 {[%emt 0:01:02]} 7. Bd3 {[%emt 0:00:18]} d6 {[%emt 0:05:05]} 8. O-O {[%emt 0:03:19]} Nbd7 {[%emt 0:02:03]} 9. b3 {[%emt 0:09:26]} e5 {[%emt 0:10:55]} 10. Ne1 {[%emt 0:03:17]} Qe7 {[%emt 0:05:04]} 11. a3 {[%emt 0:01:24]} Bxc3 {[%emt 0:01:40]} 12. Bxc3 {[%emt 0:00:05]} exd4 {[%emt 0:05:02]} 13. exd4 {[%emt 0:04:03]} Rae8 {[%emt 0:14:30]} 14. d5 {[%emt 0:03:04]} Ne5 {[%emt 0:08:02]} 15. Nf3 {[%emt 0:03:12]} Nxd3 {[%emt 0:03:46]} 16. Qxd3 {[%emt 0:00:05]} Qe4 {[%emt 0:00:10]} 17. Qd2 {[%emt 0:05:39]} Nh5 {[%emt 0:05:55]} 18. Rfe1 {[%emt 0:02:54]} Qf4 {[%emt 0:00:41]} 19. Nd4 {[%emt 0:05:35]} Qxd2 {[%emt 0:06:06]} 20. Bxd2 {[%emt 0:00:04]} a6 {[%emt 0:00:06]} 21. a4 {[%emt 0:03:19]} Nf6 {[%emt 0:00:53]} 22. a5 {[%emt 0:02:16]} Rxe1+ {[%emt 0:01:52]} 23. Rxe1 {[%emt 0:00:28]} Re8 {[%emt 0:00:12]} 24. axb6 {[%emt 0:01:52]} cxb6 {[%emt 0:06:37]} 25. Nf5 {[%emt 0:01:03]} Rxe1+ {[%emt 0:12:02]} 26. Bxe1 {[%emt 0:00:06]} Ne8 {[%emt 0:00:39]} 27. Bb4 {[%emt 0:01:06]} b5 {[%emt 0:01:14]} 28. Bxd6 {[%emt 0:03:37]} g6 {[%emt 0:02:44]} 29. Ne7+ {[%emt 0:00:40]} Kg7 {[%emt 0:00:04]} 30. Ba3 {[%emt 0:01:12]} Kf6 {[%emt 0:02:49]} 31. c5 {[%emt 0:04:17]} a5 {[%emt 0:00:04]} 32. c6 {[%emt 0:01:39]} Ba6 {[%emt 0:00:24]} 33. d6 {[%emt 0:02:53]} b4 {[%emt 0:00:08]} 34. Nd5+ {[%emt 0:00:59]} Ke5 {[%emt 0:01:03]} 35. d7 {[%emt 0:00:21]} Kxd5 {[%emt 0:00:11]} 1-0

[Event "Belt Road Women 2019"]
[Site "Shaoxing"]
[Date "2019.07.08"]
[Round "1.5"]
[White "Harika, Dronavalli"]
[Black "Zhang, Xiao"]
[Result "1-0"]
[ECO "D05"]
[WhiteElo "2492"]
[BlackElo "2259"]
[Annotator "ChessBase"]
[PlyCount "101"]
[EventDate "2019.07.08"]
[EventType "swiss"]
[EventCountry "CHN"]
[SourceTitle "playchess.com"]
[Source "ChessBase"]
[SourceQuality "1"]
[TimeControl "5400+30"]

1. Nf3 {[%emt 0:00:00]} d5 {[%emt 0:00:00]} 2. d4 {[%emt 0:00:00]} Nf6 {[%emt 0:00:00]} 3. e3 {[%emt 0:00:00]} e6 {[%emt 0:01:39]} 4. Bd3 {[%emt 0:00:32]} c5 {[%emt 0:00:49]} 5. O-O {[%emt 0:00:36]} Bd6 {[%emt 0:02:29]} 6. b3 {[%emt 0:02:23]} O-O {[%emt 0:00:27]} 7. Bb2 {[%emt 0:00:15]} cxd4 {[%emt 0:03:10]} 8. exd4 {[%emt 0:00:44]} b6 {[%emt 0:01:18]} 9. Qe2 {[%emt 0:03:23]} Bb7 {[%emt 0:01:35]} 10. Nbd2 {[%emt 0:00:13]} Nc6 {[%emt 0:01:25]} 11. a3 {[%emt 0:00:13]} Rc8 {[%emt 0:09:03]} 12. Ne5 {[%emt 0:04:45]} Qe7 {[%emt 0:11:20]} 13. f4 {[%emt 0:03:42]} g6 {[%emt 0:02:55]} 14. g4 {[%emt 0:21:16]} Nd7 {[%emt 0:10:55]} 15. Ndf3 {[%emt 0:09:10]} f6 {[%emt 0:08:01]} 16. Nxd7 {[%emt 0:03:01]} Qxd7 {[%emt 0:00:03]} 17. f5 {[%emt 0:03:24]} exf5 {[%emt 0:15:33]} 18. gxf5 {[%emt 0:00:08]} g5 {[%emt 0:00:30]} 19. Qg2 {[%emt 0:02:46]} Qg7 {[%emt 0:04:02]} 20. Kh1 {[%emt 0:03:01]} Rce8 {[%emt 0:02:01]} 21. Rae1 {[%emt 0:00:27]} Bf4 {[%emt 0:01:27]} 22. Re2 {[%emt 0:06:54]} Rxe2 {[%emt 0:04:05]} 23. Qxe2 {[%emt 0:00:13]} Rf7 {[%emt 0:03:07]} 24. Bc1 {[%emt 0:07:30]} Re7 {[%emt 0:01:26]} 25. Qf2 {[%emt 0:00:11]} Bxc1 {[%emt 0:01:39]} 26. Rxc1 {[%emt 0:00:04]} Re8 {[%emt 0:00:36]} 27. Kg1 {[%emt 0:05:19]} g4 {[%emt 0:02:21]} 28. Kh1 {[%emt 0:03:48]} Kf7 {[%emt 0:05:54]} 29. Rg1 {[%emt 0:02:42]} h5 {[%emt 0:01:07]} 30. Nh4 {[%emt 0:02:00]} Qg5 {[%emt 0:00:35]} 31. Ng2 {[%emt 0:00:08]} Ne7 {[%emt 0:03:33]} 32. h4 {[%emt 0:02:41]} Qh6 {[%emt 0:01:07]} 33. Re1 {[%emt 0:02:14]} Nc8 {[%emt 0:01:29]} 34. Rxe8 Kxe8 {[%emt 0:00:01]} 35. Qf4 {[%emt 0:04:54]} Qg7 {[%emt 0:00:46]} 36. Kh2 {[%emt 0:00:36]} Qe7 {[%emt 0:00:48]} 37. Qh6 {[%emt 0:00:39]} Qd6+ {[%emt 0:00:37]} 38. Kg1 {[%emt 0:01:57]} g3 {[%emt 0:00:16]} 39. Qxh5+ {[%emt 0:00:44]} Kd8 {[%emt 0:00:04]} 40. b4 {[%emt 0:00:31]} a5 {[%emt 0:00:34]} 41. Qh8+ {[%emt 0:01:43]} Kc7 {[%emt 0:00:06]} 42. Qg7+ {[%emt 0:00:16]} Ne7 {[%emt 0:00:55]} 43. h5 {[%emt 0:00:27]} axb4 {[%emt 0:00:14]} 44. axb4 {[%emt 0:00:03]} Qxb4 {[%emt 0:00:20]} 45. Qxg3+ {[%emt 0:00:06]} Kc8 {[%emt 0:01:22]} 46. Qe3 {[%emt 0:01:32]} Kd8 {[%emt 0:00:34]} 47. h6 {[%emt 0:00:20]} Nc6 {[%emt 0:00:05]} 48. h7 {[%emt 0:00:33]} Qf8 {[%emt 0:00:06]} 49. Qg3 {[%emt 0:00:35]} Ne7 {[%emt 0:00:24]} 50. Bb5 {[%emt 0:01:18]} Kc8 {[%emt 0:00:33]} 51. Qd6 {[%emt 0:00:17]} 1-0

[Event "Belt Road Women 2019"]
[Site "Shaoxing"]
[Date "2019.07.08"]
[Round "1.6"]
[White "Li, Yunshan"]
[Black "Khademalsharieh, Sarasadat"]
[Result "1/2-1/2"]
[ECO "E51"]
[WhiteElo "2254"]
[BlackElo "2481"]
[Annotator "RC"]
[PlyCount "40"]
[EventDate "2019.07.08"]
[EventType "swiss"]
[EventCountry "CHN"]
[SourceTitle "playchess.com"]
[Source "ChessBase"]
[SourceQuality "1"]
[TimeControl "5400+30"]

1. d4 {[%emt 0:00:00]} Nf6 {[%emt 0:00:00]} 2. c4 {[%emt 0:00:00]} e6 {[%emt 0:00:00]} 3. Nc3 {[%emt 0:00:00]} Bb4 {[%emt 0:00:57]} 4. Nf3 {[%emt 0:00:12]} b6 {[%emt 0:02:29]} 5. e3 {[%emt 0:00:20]} O-O {[%emt 0:01:20]} 6. Bd2 {[%emt 0:00:27]} d5 {[%emt 0:00:31]} 7. cxd5 {[%emt 0:00:47]} exd5 {[%emt 0:00:28]} 8. Rc1 {[%emt 0:00:26]} Bb7 {[%emt 0:03:51]} 9. Bd3 {[%emt 0:00:38]} Re8 {[%emt 0:08:48]} 10. O-O {[%emt 0:02:13]} Bd6 {[%emt 0:09:11]} 11. Nb5 {[%emt 0:01:23]} Ne4 {[%emt 0:00:06]} 12. Qc2 {[%emt 0:11:25]} c5 {[%emt 0:08:08]} 13. Nxd6 {[%emt 0:03:25]} Qxd6 {[%emt 0:00:45]} 14. dxc5 {[%emt 0:04:14]} bxc5 {[%emt 0:00:07]} 15. Rfd1 {[%emt 0:02:29]} Nd7 {[%emt 0:01:17]} 16. Be1 {[%emt 0:08:32]} f5 {[%emt 0:06:29]} 17. b4 {[%emt 0:09:45]} Rac8 {[%emt 0:09:17]} 18. Qb1 {[%emt 0:03:57]} Qf6 {[%emt 0:07:25]} 19. Bb5 {[%emt 0:06:40]} Re7 {[%emt 0:03:27]} 20. Bxd7 {[%emt 0:01:38]} Rxd7 {[%emt 0:00:38]} 1/2-1/2

[Event "Belt Road Women 2019"]
[Site "Shaoxing"]
[Date "2019.07.08"]
[Round "1.7"]
[White "Stefanova, Antoaneta"]
[Black "Fominykh, Maria"]
[Result "1-0"]
[ECO "B06"]
[WhiteElo "2474"]
[BlackElo "2243"]
[Annotator "ChessBase"]
[PlyCount "53"]
[EventDate "2019.07.08"]
[EventType "swiss"]
[EventCountry "CHN"]
[SourceTitle "playchess.com"]
[Source "ChessBase"]
[SourceQuality "1"]
[TimeControl "5400+30"]

1. e4 {[%emt 0:00:00]} g6 {[%emt 0:02:34]} 2. d4 {[%emt 0:00:00]} Bg7 {[%emt 0:00:02]} 3. Nc3 {[%emt 0:04:17]} d6 {[%emt 0:00:27]} 4. f4 {[%emt 0:01:56]} c6 {[%emt 0:06:18]} 5. Nf3 {[%emt 0:02:59]} b5 {[%emt 0:13:27]} 6. Bd3 {[%emt 0:03:02]} b4 {[%emt 0:00:36]} 7. Ne2 {[%emt 0:03:00]} d5 {[%emt 0:08:26]} 8. e5 {[%emt 0:02:45]} Qb6 {[%emt 0:12:12]} 9. a3 {[%emt 0:05:25]} Na6 {[%emt 0:13:57]} 10. O-O {[%emt 0:08:41]} Nh6 {[%emt 0:04:42]} 11. Kh1 {[%emt 0:11:58]} O-O {[%emt 0:05:50]} 12. Bd2 {[%emt 0:02:06]} bxa3 {[%emt 0:16:51]} 13. Rxa3 {[%emt 0:01:42]} f6 {[%emt 0:04:37]} 14. Nc3 {[%emt 0:21:02]} fxe5 {[%emt 0:02:39]} 15. dxe5 {[%emt 0:06:22]} Ng4 {[%emt 0:02:45]} 16. h3 {[%emt 0:05:45]} Nh6 {[%emt 0:01:51]} 17. Qe2 {[%emt 0:01:02]} Nf5 {[%emt 0:00:41]} 18. Kh2 {[%emt 0:00:17]} Nc5 {[%emt 0:00:19]} 19. Bxf5 {[%emt 0:00:36]} Bxf5 {[%emt 0:00:18]} 20. Be3 {[%emt 0:00:05]} Qb4 {[%emt 0:00:49]} 21. Na2 {[%emt 0:00:23]} Qe4 {[%emt 0:00:37]} 22. Ng5 {[%emt 0:13:55]} Qxc2 {[%emt 0:00:05]} 23. Qxc2 {[%emt 0:00:04]} Bxc2 {[%emt 0:00:01]} 24. Rc1 {[%emt 0:01:36]} Ne4 {[%emt 0:01:19]} 25. Ne6 {[%emt 0:00:38]} d4 {[%emt 0:00:36]} 26. Bxd4 {[%emt 0:00:27]} c5 {[%emt 0:00:20]} 27. Be3 {[%emt 0:00:25]} 1-0

[Event "Belt Road Women 2019"]
[Site "Shaoxing"]
[Date "2019.07.08"]
[Round "1.8"]
[White "Gu, Tianlu"]
[Black "Girya, Olga"]
[Result "1/2-1/2"]
[ECO "B32"]
[WhiteElo "2205"]
[BlackElo "2457"]
[Annotator "RC"]
[PlyCount "114"]
[EventDate "2019.07.08"]
[EventType "swiss"]
[EventCountry "CHN"]
[SourceTitle "playchess.com"]
[Source "ChessBase"]
[SourceQuality "1"]
[TimeControl "5400+30"]

1. e4 {[%emt 0:00:00]} c5 {[%emt 0:00:00]} 2. Nf3 {[%emt 0:00:00]} Nc6 {[%emt 0:00:00]} 3. d4 {[%emt 0:00:04]} cxd4 {[%emt 0:00:00]} 4. Nxd4 {[%emt 0:00:07]} e5 {[%emt 0:00:00]} 5. Nb5 {[%emt 0:02:45]} d6 {[%emt 0:00:13]} 6. c4 {[%emt 0:01:19]} g6 {[%emt 0:00:29]} 7. N1c3 {[%emt 0:01:26]} a6 {[%emt 0:00:11]} 8. Na3 {[%emt 0:00:07]} Be6 {[%emt 0:00:12]} 9. Be3 {[%emt 0:01:26]} Bg7 {[%emt 0:00:36]} 10. g3 {[%emt 0:05:10]} Nf6 {[%emt 0:04:46]} 11. h3 {[%emt 0:03:06]} O-O {[%emt 0:01:13]} 12. Bg2 {[%emt 0:00:25]} Rc8 {[%emt 0:09:14]} 13. O-O {[%emt 0:02:40]} Na5 {[%emt 0:21:18]} 14. b3 {[%emt 0:06:41]} b5 {[%emt 0:00:28]} 15. Nd5 {[%emt 0:00:12]} Nxd5 {[%emt 0:02:34]} 16. cxd5 {[%emt 0:04:16]} Bd7 {[%emt 0:00:06]} 17. Qd2 {[%emt 0:00:50]} Nb7 {[%emt 0:05:35]} 18. Rac1 {[%emt 0:00:47]} Nc5 {[%emt 0:03:41]} 19. Rc2 {[%emt 0:10:21]} f5 {[%emt 0:03:34]} 20. Bxc5 {[%emt 0:03:25]} dxc5 {[%emt 0:00:07]} 21. Rfc1 {[%emt 0:00:09]} Qb6 {[%emt 0:05:21]} 22. Kh2 {[%emt 0:05:35]} f4 {[%emt 0:06:21]} 23. Nb1 {[%emt 0:04:51]} Qd6 {[%emt 0:06:14]} 24. Qe2 {[%emt 0:06:30]} h5 {[%emt 0:02:31]} 25. Nd2 {[%emt 0:00:35]} Bh6 {[%emt 0:02:46]} 26. Rg1 {[%emt 0:07:48]} Rf6 {[%emt 0:02:15]} 27. Nf3 {[%emt 0:03:15]} Rcf8 {[%emt 0:02:22]} 28. Ne1 {[%emt 0:04:19]} fxg3+ {[%emt 0:01:48]} 29. fxg3 {[%emt 0:01:58]} b4 {[%emt 0:03:07]} 30. Nf3 {[%emt 0:06:12]} Bb5 {[%emt 0:00:57]} 31. Qd1 {[%emt 0:02:33]} a5 {[%emt 0:02:37]} 32. Re1 {[%emt 0:00:25]} a4 {[%emt 0:00:47]} 33. Nd2 {[%emt 0:01:19]} Rf2 {[%emt 0:04:56]} 34. Nc4 {[%emt 0:01:10]} Bxc4 {[%emt 0:00:03]} 35. bxc4 {[%emt 0:04:06]} R2f6 {[%emt 0:02:07]} 36. h4 {[%emt 0:00:00]} Qa6 {[%emt 0:02:09]} 37. Qa1 {[%emt 0:00:43]} Qd6 {[%emt 0:01:28]} 38. Qd1 {[%emt 0:00:14]} Kh7 {[%emt 0:01:41]} 39. Qd3 {[%emt 0:00:27]} g5 {[%emt 0:01:48]} 40. hxg5 {[%emt 0:02:22]} Bxg5 {[%emt 0:00:01]} 41. Bh3 {[%emt 0:00:50]} Rf3 {[%emt 0:01:01]} 42. Qd1 {[%emt 0:00:13]} Kh6 {[%emt 0:01:22]} 43. Bf5 {[%emt 0:01:10]} Ra3 {[%emt 0:01:32]} 44. Kg2 {[%emt 0:01:25]} Rxf5 {[%emt 0:01:12]} 45. exf5 {[%emt 0:00:07]} e4 {[%emt 0:00:02]} 46. Rxe4 {[%emt 0:01:19]} Qxg3+ {[%emt 0:00:01]} 47. Kh1 {[%emt 0:01:18]} Rf3 {[%emt 0:01:36]} 48. Rh2 {[%emt 0:01:25]} h4 {[%emt 0:00:35]} 49. Re6+ {[%emt 0:00:40]} Kh7 {[%emt 0:00:24]} 50. Rg6 {[%emt 0:00:56]} Qf4 {[%emt 0:00:12]} 51. Rxg5 {[%emt 0:04:46]} Rf1+ {[%emt 0:00:06]} 52. Qxf1 {[%emt 0:00:06]} Qxf1+ {[%emt 0:00:03]} 53. Rg1 {[%emt 0:00:05]} Qf3+ {[%emt 0:00:08]} 54. Rgg2 {[%emt 0:00:15]} Qd1+ {[%emt 0:01:51]} 55. Rg1 {[%emt 0:00:05]} Qf3+ {[%emt 0:00:02]} 56. Rgg2 {[%emt 0:00:04]} Qf1+ {[%emt 0:01:36]} 57. Rg1 {[%emt 0:00:05]} Qf3+ {[%emt 0:00:02]} 1/2-1/2